bitfinex-derivatives/quotes_SOLF0:USTF0_20250909
["timestamp","ask_amount","ask_price","bid_price","bid_amount"]
[1757447593101,7.41,216.6,216.5,5.36]
[1757447593300,7.41,216.58,216.52,2.48339]
[1757447593696,7.41,216.58,216.5,7.84339]
[1757447593901,7.02,216.56,216.48,2.48339]
[1757447595897,7.02,216.56,216.5,2.48339]
[1757447596102,7.02,216.56,216.53,5.4]
[1757447596301,7.02,216.58,216.52,2.48339]
[1757447597098,7.02,216.58,216.52,7.88339]
[1757447597698,7.02,216.58,216.55,5.4]
[1757447597903,7.02,216.6,216.54,2.48339]
[1757447598302,7.02,216.6,216.54,7.88339]
[1757447598604,7.02,216.62,216.55,2.48339]
[1757447600212,7.02,216.6,216.53,7.88339]
[1757447601806,7.02,216.6,216.53,5.4]
[1757447602805,7.02,216.58,216.51,2.48339]
[1757447605102,7.02,216.58,216.51,7.88339]
[1757447605704,7.02,216.58,216.49,7.88339]
[1757447606810,7.02,216.58,216.49,5.4]
[1757447607013,7.02,216.56,216.49,7.88339]
[1757447607808,7.02,216.56,216.47,76.73889641]
[1757447608512,2.48339,216.57,216.47,76.73889641]
[1757447608708,7.02,216.54,216.47,76.73889641]
[1757447608907,9.50339,216.57,216.49,2.48339]
[1757447609113,9.50339,216.57,216.5,5.4]
[1757447610215,9.50339,216.57,216.46,5.4]
[1757447610515,9.50339,216.57,216.47,2.48339]
[1757447611013,7.02,216.54,216.47,2.48339]
[1757447612412,7.02,216.54,216.46,5.4]
[1757447615212,7.02,216.54,216.47,2.48339]
[1757447615406,7.02,216.54,216.48,5.4]
[1757447621823,7.02,216.57,216.5,5.4]
[1757447622926,9.50339,216.57,216.5,5.4]
[1757447635729,9.50339,216.57,216.47,7.89339]
[1757447635926,14.67121073,216.57,216.47,7.89339]
[1757447641038,14.67121073,216.57,216.47,5.41]
[1757447641237,14.67121073,216.57,216.47,7.89339]
[1757447643335,2.48339,216.55,216.47,7.89339]
[1757447643534,7.34,216.54,216.47,7.89339]
[1757447644041,7.34,216.54,216.47,5.41]
[1757447644239,9.82339,216.54,216.47,5.41]
[1757447644534,7.34,216.54,216.47,5.41]
[1757447650240,0.03373687,216.53,216.47,5.41]
[1757447650441,0.03373687,216.53,216.48,0.03429896]
[1757447651543,0.03373687,216.53,216.49,5.41]
[1757447652042,0.03373687,216.53,216.48,0.03429896]
[1757447652348,0.03373687,216.53,216.49,5.41]
[1757447653050,7.37373687,216.53,216.49,5.41]
[1757447653239,7.37373687,216.53,216.48,0.03429896]
[1757447653849,7.37373687,216.53,216.49,5.41]
[1757447654341,7.37373687,216.53,216.48,0.03429896]
[1757447654847,7.37373687,216.53,216.49,5.41]
[1757447655242,7.37373687,216.53,216.48,0.03429896]
[1757447655443,7.37373687,216.53,216.49,5.41]
[1757447655744,0.03373687,216.53,216.48,0.03429896]
[1757447656049,7.32,216.52,216.48,5.44429896]
[1757447656248,0.03373687,216.53,216.48,5.44429896]
[1757447656450,7.32,216.52,216.49,5.41]
[1757447663261,0.03373687,216.53,216.49,5.41]
[1757447663760,7.35373687,216.53,216.48,0.03429896]
[1757447664360,7.35373687,216.53,216.49,5.41]
[1757447664560,7.35373687,216.53,216.48,0.03429896]
[1757447664856,7.35373687,216.53,216.49,5.41]
[1757447665056,7.32,216.52,216.49,5.41]
[1757447670067,7.32,216.52,216.48,0.03429896]
[1757447670468,7.32,216.52,216.49,5.41]
[1757447671268,0.03373687,216.53,216.49,5.41]
[1757447671670,0.03373687,216.53,216.48,0.03429896]
[1757447671864,0.03373687,216.53,216.48,5.44429896]
[1757447672063,0.03373687,216.53,216.48,0.03429896]
[1757447672064,7.32,216.52,216.48,0.03429896]
[1757447672263,5.2015576,216.53,216.48,0.03429896]
[1757447672671,7.32,216.52,216.48,0.03429896]
[1757447673568,5.2015576,216.53,216.48,0.03429896]
[1757447674073,7.32,216.52,216.48,0.03429896]
[1757447676067,5.2015576,216.53,216.48,0.03429896]
[1757447676268,7.32,216.52,216.48,0.03429896]
[1757447676974,5.2015576,216.53,216.48,0.03429896]
[1757447677374,7.32,216.52,216.48,0.03429896]
[1757447677576,5.2015576,216.53,216.48,0.03429896]
[1757447677782,7.32,216.52,216.48,0.03429896]
[1757447680467,9.08613972,216.53,216.48,0.03429896]
[1757447680468,7.32,216.49,216.48,0.03429896]
[1757447684980,7.21,216.5,216.48,0.03429896]
[1757447688582,5.16782073,216.51,216.48,0.03429896]
[1757447688882,7.21,216.5,216.48,0.03429896]
[1757447691078,5.16782073,216.51,216.48,0.03429896]
[1757447691278,7.21,216.51,216.48,0.03429896]
[1757447691474,7.21,216.51,216.48,5.44429896]
[1757447691680,7.21,216.52,216.48,5.44429896]
[1757447691879,5.2015576,216.53,216.48,5.44429896]
[1757447692083,7.21,216.52,216.48,5.44429896]
[1757447692387,5.2015576,216.53,216.48,5.44429896]
[1757447692886,7.21,216.52,216.48,5.44429896]
[1757447693085,5.2015576,216.53,216.48,5.44429896]
[1757447693282,7.21,216.52,216.48,5.44429896]
[1757447693483,5.2015576,216.53,216.48,5.44429896]
[1757447693688,7.21,216.52,216.48,0.03429896]
[1757447694189,0.03373687,216.53,216.48,0.03429896]
[1757447694583,7.21,216.52,216.48,0.03429896]
[1757447695583,0.03373687,216.53,216.48,0.03429896]
[1757447696285,7.21,216.52,216.48,0.03429896]
[1757447696984,7.21,216.52,216.48,5.44429896]
[1757447697688,0.03373687,216.53,216.48,5.44429896]
[1757447698693,7.21,216.52,216.48,5.44429896]
[1757447698893,0.03373687,216.53,216.48,5.44429896]
[1757447699193,7.21,216.52,216.49,5.41]
[1757447699393,0.03373687,216.53,216.49,5.41]
[1757447699693,7.21,216.52,216.49,5.41]
[1757447699893,0.03373687,216.53,216.49,5.41]
[1757447700087,7.21,216.52,216.49,5.41]
[1757447700283,0.03373687,216.53,216.49,5.41]
[1757447700486,7.21,216.52,216.49,5.41]
[1757447700687,0.03373687,216.53,216.49,5.41]
[1757447701093,7.24373687,216.53,216.49,5.41]
[1757447701303,7.24373687,216.53,216.48,0.03429896]
[1757447701686,7.24373687,216.53,216.49,5.41]
[1757447701892,7.24373687,216.53,216.48,0.03429896]
[1757447702391,7.24373687,216.53,216.49,5.41]
[1757447702596,7.24373687,216.53,216.48,0.03429896]
[1757447703190,7.24373687,216.53,216.49,5.41]
[1757447703597,7.24373687,216.53,216.48,0.03429896]
[1757447703993,7.21,216.52,216.48,0.03429896]
[1757447704598,0.03373687,216.53,216.48,0.03429896]
[1757447704798,0.03373687,216.53,216.49,5.41]
[1757447705397,0.03373687,216.53,216.48,0.03429896]
[1757447705794,7.21,216.52,216.48,5.44429896]
[1757447706495,0.03373687,216.53,216.48,5.44429896]
[1757447707098,7.21,216.52,216.48,5.44429896]
[1757447707297,0.03373687,216.53,216.48,5.44429896]
[1757447707701,0.03373687,216.53,216.49,5.41]
[1757447707702,7.21,216.52,216.49,5.41]
[1757447707899,0.03373687,216.53,216.49,5.41]
[1757447708099,7.21,216.52,216.49,5.41]
[1757447708692,0.03373687,216.53,216.49,5.41]
[1757447709397,7.21,216.52,216.49,5.41]
[1757447709604,0.03373687,216.53,216.49,5.41]
[1757447709798,7.21,216.52,216.49,5.41]
[1757447711506,7.21,216.52,216.48,5.44429896]
[1757447711803,7.21,216.52,216.48,0.03429896]
[1757447712406,0.03373687,216.53,216.49,5.41]
[1757447712808,0.03373687,216.53,216.49,2.48620117]
[1757447712999,0.03373687,216.53,216.5,5.41]
[1757447713401,0.03373687,216.53,216.49,2.48620117]
[1757447714308,0.03373687,216.53,216.5,5.4]
[1757447714609,0.03373687,216.53,216.49,2.48620117]
[1757447715108,0.03373687,216.53,216.5,5.4]
[1757447715305,0.03373687,216.53,216.49,2.48620117]
[1757447716009,0.03373687,216.53,216.5,5.4]
[1757447716412,0.03373687,216.53,216.49,2.48620117]
[1757447716611,0.03373687,216.53,216.5,5.4]
[1757447717012,0.03373687,216.53,216.49,2.48620117]
[1757447717213,0.03373687,216.53,216.5,5.4]
[1757447717407,0.03373687,216.53,216.52,5.4]
[1757447723309,0.03373687,216.53,216.52,5.86]
[1757447724614,2.48620117,216.63,216.52,5.86]
[1757447724816,2.48620117,216.63,216.56,5.37]
[1757447725011,12.75782073,216.64,216.56,5.37]
[1757447725218,7.59,216.64,216.56,5.37]
[1757447725916,7.59,216.64,216.58,0.03274787]
[1757447728012,7.59,216.64,216.58,5.40274787]
[1757447728814,7.77914818,216.7,216.58,5.40274787]
[1757447728815,7.59,216.72,216.64,5.37]
[1757447729019,7.59,216.72,216.65,2.48620117]
[1757447729420,7.59,216.72,216.66,0.03281682]
[1757447730016,2.48620117,216.68,216.66,0.03281682]
[1757447730217,7.59,216.67,216.66,0.03281682]
[1757447745633,5.16782073,216.72,216.66,0.03281682]
[1757447745634,7.61,216.72,216.66,2.51901799]
[1757447749231,7.61,216.72,216.66,0.03281682]
[1757447752534,7.61,216.72,216.66,2.51901799]
[1757447753034,7.61,216.72,216.66,0.03281682]
[1757447753236,7.61,216.72,216.66,2.51901799]
[1757447759234,7.61,216.72,216.69,5.36]
[1757447759940,7.61,216.74,216.68,2.48620117]
[1757447762545,7.61,216.74,216.66,0.03281682]
[1757447762740,7.61,216.74,216.67,2.48620117]
[1757447763536,2.48620117,216.73,216.66,0.03281682]
[1757447763739,7.61,216.72,216.66,0.03281682]
[1757447765742,7.61,216.72,216.66,2.51901799]
[1757447768242,12.77782073,216.72,216.66,2.51901799]
[1757447768441,12.77782073,216.72,216.66,0.03281682]
[1757447773451,5.16782073,216.71,216.66,0.03281682]
[1757447773660,7.1,216.7,216.66,0.03281682]
[1757447773856,12.26782073,216.68,216.66,0.03281682]
[1757447774452,7.1,216.67,216.66,0.03281682]
[1757447778660,12.26782073,216.67,216.66,0.03281682]
[1757447778854,7.1,216.67,216.66,0.03281682]
[1757447782161,12.26782073,216.67,216.66,0.03281682]
[1757447786159,7.1,216.67,216.56,5.37]
[1757447786357,7.1,216.65,216.56,5.37]
[1757447787064,7.1,216.63,216.56,5.37]
[1757447824089,5.1819708,216.65,216.56,5.37]
[1757447824293,12.5819708,216.66,216.56,5.37]
[1757447824595,7.4,216.66,216.56,5.37]
[1757447825593,12.5819708,216.66,216.56,5.37]
[1757447825989,7.4,216.66,216.56,5.37]
[1757447826990,5.1819708,216.65,216.56,5.37]
[1757447827288,7.4,216.62,216.53,5.4]
[1757447828095,7.4,216.62,216.55,3.87773078]
[1757447828297,12.5819708,216.65,216.56,5.4]
[1757447829899,5.1819708,216.66,216.59,5.4]
[1757447830194,12.5819708,216.68,216.59,5.4]
[1757447830395,7.4,216.67,216.63,2.48207787]
[1757447830595,5.1819708,216.68,216.63,2.48207787]
[1757447831096,7.4,216.67,216.63,2.48207787]
[1757447831290,5.1819708,216.68,216.63,2.48207787]
[1757447831498,7.4,216.67,216.63,2.48207787]
[1757447831696,7.4,216.67,216.61,2.48207787]
[1757447831891,12.5819708,216.67,216.61,2.48207787]
[1757447832092,5.1819708,216.67,216.61,2.48207787]
[1757447832292,5.1819708,216.66,216.61,2.48207787]
[1757447832598,7.4,216.66,216.61,2.48207787]
[1757447833389,5.1819708,216.67,216.61,2.48207787]
[1757447833795,7.36,216.66,216.61,2.48207787]
[1757447834094,12.5419708,216.66,216.61,2.48207787]
[1757447834292,7.36,216.65,216.61,2.48207787]
[1757447834697,5.1819708,216.66,216.61,2.48207787]
[1757447835496,7.36,216.65,216.61,2.48207787]
[1757447835897,5.1819708,216.66,216.61,2.48207787]
[1757447836200,12.5419708,216.68,216.61,7.88207787]
[1757447838100,5.1819708,216.68,216.61,7.88207787]
[1757447838298,7.36,216.67,216.61,7.88207787]
[1757447851124,12.5419708,216.68,216.62,5.4]
[1757447851618,7.36,216.68,216.62,5.4]
[1757447855920,7.36,216.68,216.61,2.48207787]
[1757447857321,12.5419708,216.68,216.61,2.48207787]
[1757447857818,12.5419708,216.68,216.62,5.4]
[1757447858018,7.36,216.68,216.62,5.4]
[1757447858423,12.5419708,216.68,216.62,5.4]
[1757447859223,7.36,216.68,216.63,2.48207787]
[1757447859622,7.36,216.68,216.64,5.4]
[1757447859823,5.1819708,216.69,216.64,5.4]
[1757447860423,7.36,216.68,216.64,5.4]
[1757447860614,5.1819708,216.69,216.64,5.4]
[1757447861225,7.36,216.68,216.64,5.4]
[1757447862120,7.36,216.69,216.64,5.4]
[1757447862425,7.36,216.69,216.62,2.48207787]
[1757447862619,12.5419708,216.69,216.62,2.48207787]
[1757447863021,5.1819708,216.68,216.6,2.48207787]
[1757447863222,7.36,216.67,216.6,2.48207787]
[1757447868128,7.36,216.67,216.61,5.41]
[1757447868326,12.5419708,216.67,216.61,5.41]
[1757447868926,6.96,216.66,216.63,5.41]
[1757447872431,5.1819708,216.67,216.63,5.41]
[1757447872628,6.96,216.66,216.63,5.41]
[1757447872836,5.1819708,216.67,216.63,5.41]
[1757447873230,6.96,216.66,216.6,2.48207787]
[1757447876034,12.1419708,216.66,216.6,2.48207787]
[1757447879335,12.1419708,216.66,216.59,5.41]
[1757447879536,12.1419708,216.66,216.59,7.89207787]
[1757447880436,5.1819708,216.65,216.57,2.48207787]
[1757447880636,2.48207787,216.66,216.57,2.48207787]
[1757447880637,12.1419708,216.64,216.57,2.48207787]
[1757447882241,6.96,216.64,216.57,2.48207787]
[1757447886041,14.62404867,216.64,216.57,2.48207787]
[1757447886743,14.62404867,216.64,216.55,7.89207787]
[1757447890245,12.1419708,216.64,216.55,7.89207787]
[1757447890442,12.1419708,216.64,216.55,5.41]
[1757447892145,6.96,216.64,216.55,5.41]
[1757447912272,12.1419708,216.64,216.55,5.41]
[1757447914172,5.1819708,216.63,216.55,5.41]
[1757447914374,7.41,216.62,216.55,5.41]
[1757447920573,12.5919708,216.65,216.55,3.88089247]
[1757447920776,12.5919708,216.65,216.56,5.4]
[1757447921276,7.41,216.63,216.56,5.4]
[1757447938285,12.2419708,216.64,216.53,5.41]
[1757447939988,7.06,216.61,216.53,5.41]
[1757447940381,7.06,216.61,216.53,3.88089247]
[1757447940576,7.06,216.61,216.54,5.41]
[1757447940785,12.2419708,216.64,216.54,5.41]
[1757447945687,7.06,216.64,216.54,5.41]
[1757447947188,7.06,216.64,216.57,5.41]
[1757447947691,12.2419708,216.64,216.54,5.41]
[1757447948391,7.06,216.6,216.54,5.41]
[1757447949089,7.06,216.6,216.51,3.87436633]
[1757447949290,7.06,216.6,216.5,5.41]
[1757447950288,9.54464582,216.6,216.51,2.48464582]
[1757447950485,9.54464582,216.6,216.5,5.41]
[1757447950486,9.54464582,216.6,216.5,7.89464582]
[1757447950687,7.06,216.6,216.5,7.89464582]
[1757447950888,9.54464582,216.6,216.5,7.89464582]
[1757447951788,14.72661662,216.6,216.5,7.89464582]
[1757447952292,9.54464582,216.6,216.5,7.89464582]
[1757447952495,7.06,216.57,216.5,7.89464582]
[1757447953092,7.06,216.57,216.5,2.48464582]
[1757447953591,7.06,216.57,216.48,2.48464582]
[1757447954095,2.48464582,216.56,216.48,2.48464582]
[1757447954396,7.67,216.55,216.48,2.48464582]
[1757447955190,271.48464582,216.54,216.44,4.67796869]
[1757447955394,2.48464582,216.48,216.38,5.41]
[1757447955590,7.67,216.47,216.38,5.41]
[1757447956191,7.67,216.47,216.38,7.89464582]
[1757447956594,7.70244563,216.45,216.38,5.41]
[1757447957591,0.03244563,216.45,216.4,2.48464582]
[1757447957793,0.03244563,216.45,216.41,5.44]
[1757447958387,0.03244563,216.45,216.4,2.48464582]
[1757447958589,0.03244563,216.45,216.41,5.44]
[1757447958899,0.03244563,216.45,216.34,0.80415015]
[1757447959093,7.67,216.44,216.38,2.48464582]
[1757447959299,7.67,216.44,216.38,7.92464582]
[1757447960301,7.67,216.44,216.38,5.44]
[1757447960600,0.03244563,216.45,216.4,5.44]
[1757447960995,7.67,216.44,216.4,5.44]
[1757447961389,0.03244563,216.45,216.4,5.44]
[1757447961595,7.67,216.44,216.4,5.44]
[1757447961791,0.03244563,216.45,216.4,5.44]
[1757447962391,7.67,216.44,216.4,5.44]
[1757447962590,0.03244563,216.45,216.4,5.44]
[1757447962998,0.03244563,216.45,216.39,7.92464582]
[1757447963202,7.70244563,216.45,216.39,7.92464582]
[1757447963698,0.03244563,216.45,216.34,0.80415015]
[1757447963893,0.03244563,216.45,216.41,2.48464582]
[1757447964093,0.03244563,216.45,216.42,5.44]
[1757447964493,0.03244563,216.45,216.41,2.48464582]
[1757447964699,7.67,216.44,216.37,68.56396044]
[1757447964894,7.67,216.44,216.4,2.48464582]
[1757447965091,7.67,216.44,216.41,5.44]
[1757447965298,0.03244563,216.45,216.41,5.44]
[1757447965602,0.03244563,216.45,216.4,2.48464582]
[1757447965904,0.03244563,216.45,216.41,5.44]
[1757447966104,7.70244563,216.45,216.41,5.44]
[1757447966404,7.67,216.44,216.41,5.44]
[1757447966798,0.03244563,216.45,216.4,2.48464582]
[1757447967102,7.70244563,216.45,216.41,5.44]
[1757447967700,7.70244563,216.45,216.4,2.48464582]
[1757447967896,7.70244563,216.45,216.41,5.44]
[1757447967897,0.03244563,216.45,216.41,5.44]
[1757447968101,0.03244563,216.45,216.4,2.48464582]
[1757447968402,7.70244563,216.45,216.41,5.44]
[1757447969601,7.70244563,216.45,216.4,2.48464582]
[1757447969899,0.03244563,216.45,216.42,2.48464582]
[1757447970106,0.03244563,216.45,216.43,5.44]
[1757447970703,0.03244563,216.45,216.42,2.48464582]
[1757447970899,7.70244563,216.45,216.42,7.92464582]
[1757447973306,7.70244563,216.45,216.42,2.48464582]
[1757447973506,7.70244563,216.45,216.43,5.44]
[1757447974405,7.70244563,216.45,216.42,2.48464582]
[1757447974806,7.70244563,216.45,216.42,7.92464582]
[1757447975003,7.67,216.44,216.42,2.48464582]
[1757447975403,0.03244563,216.45,216.42,7.92464582]
[1757447975605,7.70244563,216.45,216.42,7.92464582]
[1757447975907,0.03244563,216.45,216.43,5.44]
[1757447977102,0.03244563,216.45,216.42,2.48464582]
[1757447977298,0.03244563,216.45,216.43,5.44]
[1757447977503,7.70244563,216.45,216.43,5.44]
[1757447978005,0.03244563,216.45,216.43,5.44]
[1757447980200,7.67,216.44,216.4,7.92464582]
[1757447981408,7.67,216.44,216.4,5.44]
[1757447982010,0.03244563,216.45,216.4,5.44]
[1757447982412,7.67,216.44,216.4,5.44]
[1757447982605,0.03244563,216.45,216.4,5.44]
[1757447982803,7.67,216.44,216.4,5.44]
[1757447983006,0.03244563,216.45,216.39,2.48464582]
[1757447983206,0.03244563,216.45,216.34,71.33108282]
[1757447983207,0.03244563,216.45,216.41,2.48464582]
[1757447983702,7.21244563,216.45,216.41,7.92464582]
[1757447983905,0.03244563,216.45,216.41,5.44]
[1757447984211,7.21244563,216.45,216.39,2.48464582]
[1757447985403,7.21244563,216.45,216.39,7.92464582]
[1757447987312,7.21244563,216.45,216.39,5.44]
[1757447987510,7.21244563,216.45,216.39,7.92464582]
[1757447987912,7.21244563,216.45,216.39,5.44]
[1757447988111,7.21244563,216.45,216.39,7.92464582]
[1757447991117,9.69709145,216.45,216.39,5.44]
[1757447991318,2.48464582,216.43,216.35,5.44]
[1757447991520,7.18,216.42,216.35,7.92464582]
[1757447992120,0.03384414,216.41,216.35,7.92464582]
[1757447995425,0.03384414,216.41,216.37,2.48464582]
[1757447995727,0.03384414,216.41,216.38,5.44]
[1757447996026,7.18,216.4,216.38,5.44]
[1757447996529,7.18,216.4,216.36,2.48464582]
[1757447996820,7.21384414,216.41,216.36,2.48464582]
[1757447997226,7.21384414,216.41,216.37,5.44]
[1757447997628,7.21384414,216.41,216.36,2.48464582]
[1757447998236,7.18,216.4,216.37,5.44]
[1757447998427,7.18,216.4,216.36,2.48464582]
[1757447998630,0.03384414,216.41,216.36,2.48464582]
[1757447998833,0.03384414,216.41,216.37,5.44]
[1757447999334,0.03384414,216.41,216.36,2.48464582]
[1757447999532,7.18,216.4,216.37,5.44]
[1757447999736,0.03384414,216.41,216.37,5.44]
[1757447999936,7.21384414,216.41,216.37,5.44]
[1757448000231,7.21384414,216.41,216.36,2.48464582]
[1757448000834,7.21384414,216.41,216.37,5.44]
[1757448001133,0.03384414,216.41,216.37,5.44]
[1757448001334,7.21384414,216.41,216.36,2.48464582]
[1757448001535,7.21384414,216.41,216.35,5.44]
[1757448001736,7.21384414,216.41,216.37,5.44]
[1757448001936,7.21384414,216.41,216.36,2.48464582]
[1757448002136,7.21384414,216.41,216.37,5.44]
[1757448002538,0.03384414,216.41,216.37,5.44]
[1757448002842,7.21384414,216.41,216.37,5.44]
[1757448003234,7.18,216.4,216.37,5.44]
[1757448005440,7.18,216.4,216.28,3.86462657]
[1757448005744,7.18,216.4,216.34,5.44]
[1757448006136,0.03093627,216.36,216.33,2.48464582]
[1757448006347,0.03093627,216.36,216.34,5.44]
[1757448006636,0.03093627,216.36,216.33,2.48464582]
[1757448006843,0.03093627,216.36,216.34,5.44]
[1757448007436,0.03093627,216.36,216.33,2.48464582]
[1757448007636,0.03093627,216.36,216.34,5.44]
[1757448008338,7.21093627,216.36,216.34,5.44]
[1757448009245,0.03093627,216.36,216.34,5.44]
[1757448009745,7.21093627,216.36,216.33,7.92464582]
[1757448010041,7.21093627,216.36,216.34,5.44]
[1757448010846,7.21093627,216.36,216.33,5.44]
[1757448012140,0.03093627,216.36,216.32,2.48464582]
[1757448012348,7.18,216.35,216.33,5.44]
[1757448012941,0.03093627,216.36,216.33,5.44]
[1757448013244,7.21093627,216.36,216.33,5.44]
[1757448014150,7.0,216.35,216.33,5.44]
[1757448015447,7.03093627,216.36,216.3,0.80441969]
[1757448016149,7.03093627,216.36,216.31,5.44]
[1757448016340,0.03093627,216.36,216.31,5.44]
[1757448016945,0.03093627,216.36,216.3,0.80441969]
[1757448017347,0.03093627,216.36,216.31,5.44]
[1757448017546,0.03093627,216.36,216.3,0.80441969]
[1757448017944,0.03093627,216.36,216.31,5.44]
[1757448018146,0.03093627,216.36,216.3,6.24441969]
[1757448023750,7.0,216.35,216.3,6.24441969]
[1757448023956,0.03093627,216.36,216.3,0.80441969]
[1757448024148,7.0,216.35,216.23,5.44]
[1757448024555,12.1819708,216.35,216.23,5.44]
[1757448025159,7.0,216.3,216.23,5.44]
[1757448030661,7.0,216.3,216.19,5.44]
[1757448031258,0.0342127,216.27,216.19,5.44]
[1757448031455,7.0342127,216.27,216.19,5.44]
[1757448040361,0.0342127,216.27,216.2,5.44]
[1757448041762,7.0342127,216.27,216.2,5.44]
[1757448047265,0.0342127,216.27,216.21,5.45]
[1757448049666,7.3042127,216.27,216.21,5.45]
[1757448066881,7.3042127,216.27,216.18,6.2548662]
[1757448067082,7.3042127,216.27,216.19,3.8889497]
[1757448067488,7.3042127,216.27,216.2,5.45]
[1757448070902,0.0342127,216.27,216.23,5.45]
[1757448071303,0.0342127,216.27,216.22,3.8889497]
[1757448071903,7.3042127,216.27,216.23,5.45]
[1757448072103,7.3042127,216.27,216.22,3.8889497]
[1757448072303,7.3042127,216.27,216.23,5.45]
[1757448072802,7.3042127,216.27,216.22,3.8889497]
[1757448073002,7.3042127,216.27,216.23,5.45]
[1757448073303,7.3042127,216.27,216.22,3.8889497]
[1757448073504,7.3042127,216.27,216.23,5.45]
[1757448074406,7.3042127,216.27,216.25,2.4907619]
[1757448076812,7.3042127,216.27,216.22,5.45]
[1757448077007,7.3042127,216.27,216.25,2.4907619]
[1757448077508,7.33,216.26,216.25,2.4907619]
[1757448077710,0.0342127,216.27,216.25,2.4907619]
[1757448077909,7.3642127,216.27,216.25,2.4907619]
[1757448078513,7.33,216.26,216.25,2.4907619]
[1757448079412,7.3642127,216.27,216.25,2.4907619]
[1757448080815,0.0342127,216.27,216.26,5.45]
[1757448082515,0.0342127,216.27,216.26,7.9407619]
[1757448082915,0.0342127,216.27,216.26,2.4907619]
[1757448084018,7.3642127,216.27,216.26,2.4907619]
[1757448084415,0.0342127,216.27,216.26,2.4907619]
[1757448084612,0.0342127,216.27,216.26,7.9407619]
[1757448085218,0.0342127,216.27,216.26,5.45]
[1757448085421,0.0342127,216.27,216.26,7.9407619]
[1757448087114,0.0342127,216.27,216.26,5.45]
[1757448087316,0.0342127,216.27,216.26,7.9407619]
[1757448097019,7.33,216.33,216.26,7.9407619]
[1757448097220,7.33,216.36,216.3,2.4907619]
[1757448099814,7.33,216.36,216.26,5.45]
[1757448100021,12.5199525,216.36,216.29,2.4907619]
[1757448100416,5.1899525,216.35,216.29,2.4907619]
[1757448100621,7.33,216.34,216.29,2.4907619]
[1757448101221,7.33,216.34,216.26,5.45]
[1757448101524,7.33,216.35,216.29,2.4907619]
[1757448104422,7.45,216.36,216.31,7.9407619]
[1757448104620,5.18724377,216.37,216.31,7.9407619]
[1757448105124,5.18724377,216.37,216.31,2.4907619]
[1757448105326,7.45,216.36,216.31,2.4907619]
[1757448105924,5.18724377,216.37,216.31,2.4907619]
[1757448106126,7.45,216.36,216.31,2.4907619]
[1757448107927,5.18724377,216.38,216.31,2.4907619]
[1757448107928,7.45,216.37,216.31,2.4907619]
[1757448111726,7.45,216.37,216.33,2.4907619]
[1757448111926,7.45,216.37,216.35,2.4907619]
[1757448112226,5.18724377,216.42,216.35,2.4907619]
[1757448112429,7.45,216.42,216.37,2.4907619]
[1757448112730,5.18724377,216.43,216.37,2.4907619]
[1757448112934,5.18724377,216.44,216.37,2.4907619]
[1757448113128,7.45,216.43,216.38,2.4907619]
[1757448113430,7.45,216.46,216.43,5.44]
[1757448113633,5.18724377,216.5,216.43,5.44]
[1757448113924,7.45,216.49,216.44,2.4907619]
[1757448114620,12.63724377,216.5,216.44,2.4907619]
[1757448114820,7.45,216.5,216.44,2.4907619]
[1757448115026,12.63724377,216.5,216.44,2.4907619]
[1757448115224,7.45,216.5,216.44,2.4907619]
[1757448123629,7.45,216.53,216.44,2.4907619]
[1757448126038,7.45,216.53,216.42,5.44]
[1757448126239,7.45,216.53,216.45,2.4907619]
[1757448127244,114.9507619,216.54,216.45,2.4907619]
[1757448131849,2.4907619,216.5,216.29,3.86336354]
[1757448132049,2.4907619,216.5,216.42,2.4907619]
[1757448132245,2.4907619,216.46,216.31,93.8243094]
[1757448132451,114.8907619,216.46,216.37,2.4907619]
[1757448132852,114.8907619,216.46,216.31,93.8243094]